[Event "FIDE WSTC Open 50 2025"]
[Site "Prague"]
[Date "2025.02.17"]
[Round "1.1"]
[White "Jhunjhnuwala, Krishan"]
[Black "Kaidanov, Gregory"]
[Result "1/2-1/2"]
[Annotator "ChessBase"]
[ECO "B24"]
[WhiteElo "2207"]
[BlackElo "2513"]
[PlyCount "130"]
[EventDate "2025.02.17"]
[EventType "team-tourn"]
[EventCountry "CZE"]
[SourceTitle "playchess.com"]
[Source "ChessBase"]
[SourceQuality "1"]
[TimeControl "40/5400+30:1800+30"]

1. e4 {[%emt 0:00:06]} c5 {[%emt 0:00:06]} 2. Nc3 {[%emt 0:00:06]} Nc6 {[%emt 0:00:05]} 3. Bb5 {[%emt 0:00:38]} Nd4 {[%emt 0:00:06]} 4. Nf3 {[%emt 0:00:40]} a6 {[%emt 0:01:12]} 5. Bd3 {[%emt 0:02:31]} g6 6. Nxd4 {[%emt 0:00:13]} cxd4 {[%emt 0:00:27]} 7. Ne2 Bg7 8. c3 {[%emt 0:02:21]} dxc3 {[%emt 0:02:37]} 9. dxc3 {[%emt 0:00:51]} Nf6 {[%emt 0:00:48]} 10. O-O {[%emt 0:03:46]} O-O {[%emt 0:02:14]} 11. h3 {[%emt 0:05:36]} d6 {[%emt 0:02:47]} 12. Be3 {[%emt 0:03:25]} Nd7 {[%emt 0:03:42]} 13. f4 {[%emt 0:09:04]} b6 {[%emt 0:02:50]} 14. Bc2 {[%emt 0:06:30]} Bb7 {[%emt 0:01:07]} 15. Bd4 {[%emt 0:17:15]} e5 {[%emt 0:11:05]} 16. fxe5 {[%emt 0:02:29]} dxe5 {[%emt 0:01:02]} 17. Be3 {[%emt 0:01:23]} Rc8 {[%emt 0:04:23]} 18. Qd6 {[%emt 0:13:00]} Rc6 {[%emt 0:07:20]} 19. Qd2 {[%emt 0:01:36]} Nc5 {[%emt 0:11:48]} 20. Rad1 {[%emt 0:02:25]} Qc7 {[%emt 0:05:35]} 21. b4 {[%emt 0:05:41]} Ne6 {[%emt 0:00:18]} 22. Qd7 {[%emt 0:01:40]} Nd4 {[%emt 0:02:57]} 23. Qxc7 {[%emt 0:04:32]} Nxe2+ {[%emt 0:01:10]} 24. Kf2 {[%emt 0:00:31]} Rxc7 {[%emt 0:00:08]} 25. Kxe2 {[%emt 0:00:10]} Rxc3 {[%emt 0:00:20]} 26. Bb3 {[%emt 0:02:59]} Bxe4 {[%emt 0:02:26]} 27. Rd7 {[%emt 0:02:47]} Bc6 {[%emt 0:07:12]} 28. Rdxf7 {[%emt 0:04:51]} Bb5+ {[%emt 0:02:29]} 29. Kd2 {[%emt 0:00:48]} Bxf1 {[%emt 0:02:06]} 30. Rxf8+ {[%emt 0:02:19]} Kxf8 {[%emt 0:00:05]} 31. Kxc3 {[%emt 0:00:11]} Bxg2 {[%emt 0:06:56]} 32. Be6 {[%emt 0:02:18]} Ke7 {[%emt 0:06:08]} 33. Bc8 {[%emt 0:00:30]} Kd8 {[%emt 0:00:58]} 34. Bxa6 {[%emt 0:00:57]} Kc7 {[%emt 0:00:13]} 35. h4 {[%emt 0:00:53]} Bc6 {[%emt 0:00:46]} 36. Be2 {[%emt 0:01:04]} Be8 {[%emt 0:01:55]} 37. a3 {[%emt 0:01:15]} b5 {[%emt 0:00:40]} 38. Kd3 {[%emt 0:00:48]} Bf7 {[%emt 0:02:11]} 39. Bf3 {[%emt 0:00:34]} Bc4+ {[%emt 0:04:49]} 40. Ke4 {[%emt 0:00:42]} Kc6 {[%emt 0:00:40]} 41. Bd1 {[%emt 0:02:36]} Bd5+ {[%emt 0:05:14]} 42. Kd3 {[%emt 0:00:12]} e4+ {[%emt 0:07:53]} 43. Kd2 {[%emt 0:01:24]} Bf6 {[%emt 0:05:41]} 44. Bf2 {[%emt 0:05:48]} Bc4 {[%emt 0:02:42]} 45. a4 {[%emt 0:01:42]} bxa4 {[%emt 0:03:12]} 46. Bxa4+ {[%emt 0:00:18]} Kd5 {[%emt 0:01:08]} 47. Be8 {[%emt 0:02:09]} Bd3 {[%emt 0:01:10]} 48. b5 {[%emt 0:04:46]} Be5 {[%emt 0:04:13]} 49. Bc6+ {[%emt 0:03:30]} Kd6 {[%emt 0:02:36]} 50. Ke3 {[%emt 0:01:44]} Bb2 {[%emt 0:00:29]} 51. Bxe4 {[%emt 0:02:10]} Bxb5 {[%emt 0:00:05]} 52. h5 {[%emt 0:01:02]} gxh5 {[%emt 0:00:06]} 53. Bxh7 {[%emt 0:00:28]} Be8 {[%emt 0:00:04]} 54. Kf4 {[%emt 0:02:01]} Ke6 {[%emt 0:00:22]} 55. Bf5+ {[%emt 0:00:28]} Kf6 {[%emt 0:00:08]} 56. Bh4+ {[%emt 0:00:12]} Kg7 {[%emt 0:00:04]} 57. Kg3 {[%emt 0:00:44]} Bc3 {[%emt 0:00:08]} 58. Bg5 {[%emt 0:01:10]} Be1+ {[%emt 0:00:08]} 59. Kh3 {[%emt 0:01:04]} Bb5 {[%emt 0:00:01]} 60. Kg2 {[%emt 0:00:36]} Bc6+ {[%emt 0:00:13]} 61. Kh3 {[%emt 0:00:39]} Bf3 {[%emt 0:00:06]} 62. Kh2 {[%emt 0:00:50]} Bf2 {[%emt 0:00:10]} 63. Kh3 {[%emt 0:00:24]} Be1 {[%emt 0:00:06]} 64. Kh2 {[%emt 0:00:11]} Bf2 {[%emt 0:00:04]} 65. Kh3 {[%emt 0:00:07]} Be1 {[%emt 0:00:05]} 1/2-1/2

[Event "FIDE WSTC Open 50 2025"]
[Site "Prague"]
[Date "2025.02.17"]
[Round "1.2"]
[White "Shabalov, Alexander"]
[Black "Jhunjhnuwala, Ramesh"]
[Result "1-0"]
[Annotator "ChessBase"]
[ECO "B20"]
[WhiteElo "2471"]
[BlackElo "2014"]
[PlyCount "71"]
[EventDate "2025.02.17"]
[EventType "team-tourn"]
[EventCountry "CZE"]
[SourceTitle "playchess.com"]
[Source "ChessBase"]
[SourceQuality "1"]
[TimeControl "40/5400+30:1800+30"]

1. e4 {[%emt 0:00:05]} c5 {[%emt 0:00:07]} 2. a4 {[%emt 0:00:09]} Nc6 {[%emt 0:01:50]} 3. Bb5 {[%emt 0:00:09]} g6 {[%emt 0:05:31]} 4. f4 {[%emt 0:00:28]} Bg7 {[%emt 0:01:27]} 5. Nf3 {[%emt 0:00:12]} e6 {[%emt 0:02:03]} 6. Bxc6 {[%emt 0:03:07]} bxc6 {[%emt 0:02:36]} 7. e5 {[%emt 0:02:18]} Ba6 {[%emt 0:00:32]} 8. d3 {[%emt 0:00:24]} d5 {[%emt 0:05:59]} 9. exd6 {[%emt 0:00:19]} Qxd6 {[%emt 0:00:12]} 10. Nc3 {[%emt 0:00:41]} Nf6 {[%emt 0:10:43]} 11. O-O {[%emt 0:01:10]} c4 {[%emt 0:12:37]} 12. d4 {[%emt 0:11:53]} O-O {[%emt 0:04:12]} 13. Qe2 {[%emt 0:06:50]} c5 {[%emt 0:08:57]} 14. dxc5 {[%emt 0:09:13]} Qxc5+ {[%emt 0:00:09]} 15. Be3 {[%emt 0:00:05]} Qb4 {[%emt 0:05:27]} 16. Bd4 {[%emt 0:03:13]} Rfd8 {[%emt 0:02:53]} 17. Rfd1 {[%emt 0:03:27]} Rd7 {[%emt 0:21:06]} 18. Ne5 {[%emt 0:07:23]} Rxd4 {[%emt 0:01:28]} 19. Rxd4 {[%emt 0:00:06]} Qxb2 {[%emt 0:00:04]} 20. Qe1 {[%emt 0:03:02]} Nd5 {[%emt 0:01:46]} 21. Rad1 {[%emt 0:04:31]} Bxe5 {[%emt 0:01:56]} 22. Qxe5 {[%emt 0:00:17]} Qxc3 {[%emt 0:03:59]} 23. Rxd5 {[%emt 0:00:10]} Qxe5 {[%emt 0:00:03]} 24. Rd8+ {[%emt 0:00:25]} Rxd8 {[%emt 0:00:27]} 25. Rxd8+ {[%emt 0:00:05]} Kg7 {[%emt 0:00:03]} 26. fxe5 {[%emt 0:00:05]} Bb7 {[%emt 0:02:25]} 27. Rd7 {[%emt 0:01:06]} Be4 {[%emt 0:00:18]} 28. Rxa7 {[%emt 0:00:43]} Bxc2 {[%emt 0:00:09]} 29. a5 {[%emt 0:00:26]} Be4 {[%emt 0:00:55]} 30. Rc7 {[%emt 0:00:09]} Bd5 {[%emt 0:00:54]} 31. a6 {[%emt 0:00:07]} g5 {[%emt 0:00:07]} 32. a7 {[%emt 0:00:11]} Kg6 {[%emt 0:00:05]} 33. g4 {[%emt 0:00:16]} h5 {[%emt 0:00:18]} 34. gxh5+ {[%emt 0:00:33]} Kxh5 {[%emt 0:00:21]} 35. Rxc4 {[%emt 0:00:09]} Kg6 {[%emt 0:00:27]} 36. Rc8 {[%emt 0:00:26]} 1-0

[Event "FIDE WSTC Open 50 2025"]
[Site "Prague"]
[Date "2025.02.17"]
[Round "1.3"]
[White "Jhunjhnuwala, Suresh"]
[Black "Novikov, Igor"]
[Result "0-1"]
[Annotator "ChessBase"]
[ECO "B23"]
[WhiteElo "1917"]
[BlackElo "2490"]
[PlyCount "70"]
[EventDate "2025.02.17"]
[EventType "team-tourn"]
[EventCountry "CZE"]
[SourceTitle "playchess.com"]
[Source "ChessBase"]
[SourceQuality "1"]
[TimeControl "40/5400+30:1800+30"]

1. e4 {[%emt 0:00:07]} c5 {[%emt 0:00:05]} 2. Nc3 {[%emt 0:00:13]} d6 {[%emt 0:00:08]} 3. Bc4 {[%emt 0:00:35]} Nf6 {[%emt 0:01:01]} 4. d3 {[%emt 0:00:17]} g6 {[%emt 0:03:44]} 5. f4 {[%emt 0:01:46]} Nc6 {[%emt 0:00:15]} 6. Nf3 {[%emt 0:10:17]} Bg7 {[%emt 0:01:12]} 7. O-O {[%emt 0:00:43]} O-O {[%emt 0:00:46]} 8. Qe1 {[%emt 0:03:02]} e6 {[%emt 0:02:27]} 9. f5 {[%emt 0:07:20]} exf5 {[%emt 0:20:59]} 10. Qh4 {[%emt 0:02:15]} Nd4 {[%emt 0:30:58]} 11. Bh6 {[%emt 0:28:12]} Bxh6 {[%emt 0:05:54]} 12. Qxh6 {[%emt 0:00:52]} Ng4 {[%emt 0:00:19]} 13. Qd2 {[%emt 0:01:42]} Nxf3+ {[%emt 0:03:23]} 14. Rxf3 {[%emt 0:02:10]} fxe4 {[%emt 0:03:30]} 15. Rf4 {[%emt 0:14:48]} e3 {[%emt 0:04:27]} 16. Qe2 {[%emt 0:00:51]} Ne5 {[%emt 0:05:23]} 17. Bd5 {[%emt 0:04:09]} Be6 {[%emt 0:02:09]} 18. Qxe3 {[%emt 0:06:49]} Qe7 {[%emt 0:01:01]} 19. Raf1 {[%emt 0:02:19]} f5 {[%emt 0:04:00]} 20. d4 {[%emt 0:03:10]} cxd4 {[%emt 0:00:06]} 21. Rxd4 {[%emt 0:00:53]} Rad8 {[%emt 0:00:56]} 22. Rfd1 {[%emt 0:00:27]} a6 {[%emt 0:01:49]} 23. Bxe6+ {[%emt 0:01:10]} Qxe6 {[%emt 0:00:04]} 24. Rd5 {[%emt 0:00:09]} Rfe8 {[%emt 0:00:42]} 25. h3 {[%emt 0:00:40]} Nc4 {[%emt 0:01:14]} 26. Qd4 {[%emt 0:02:02]} Qe3+ {[%emt 0:01:15]} 27. Kh1 {[%emt 0:00:53]} Nxb2 {[%emt 0:01:41]} 28. Rb1 {[%emt 0:00:52]} Qg3 {[%emt 0:00:50]} 29. Qf6 {[%emt 0:04:12]} b5 {[%emt 0:02:37]} 30. Nxb5 {[%emt 0:00:27]} axb5 {[%emt 0:00:35]} 31. Qxb2 {[%emt 0:00:03]} Re2 {[%emt 0:00:42]} 32. Rg1 {[%emt 0:00:11]} Rc8 {[%emt 0:00:39]} 33. Qxb5 {[%emt 0:01:10]} Rcxc2 {[%emt 0:00:10]} 34. Qb8+ {[%emt 0:00:36]} Kg7 {[%emt 0:00:05]} 35. Rxd6 {[%emt 0:00:19]} Qxh3+ {[%emt 0:00:13]} 0-1

[Event "FIDE WSTC Open 50 2025"]
[Site "Prague"]
[Date "2025.02.17"]
[Round "1.4"]
[White "Rachels, Stuart"]
[Black "Jhunjhnuwala, Naresh"]
[Result "1-0"]
[Annotator "ChessBase"]
[ECO "C05"]
[WhiteElo "2466"]
[BlackElo "1965"]
[PlyCount "89"]
[EventDate "2025.02.17"]
[EventType "team-tourn"]
[EventCountry "CZE"]
[SourceTitle "playchess.com"]
[Source "ChessBase"]
[SourceQuality "1"]
[TimeControl "40/5400+30:1800+30"]

1. e4 {[%emt 0:00:05]} e6 {[%emt 0:00:03]} 2. d4 {[%emt 0:00:09]} d5 {[%emt 0:00:05]} 3. Nd2 {[%emt 0:00:11]} Nf6 {[%emt 0:01:09]} 4. e5 {[%emt 0:00:09]} Nfd7 {[%emt 0:00:17]} 5. c3 {[%emt 0:00:18]} c5 {[%emt 0:00:06]} 6. Bd3 {[%emt 0:00:14]} Nc6 {[%emt 0:00:06]} 7. Ne2 {[%emt 0:00:23]} Qb6 {[%emt 0:01:18]} 8. Nf3 {[%emt 0:00:16]} Be7 {[%emt 0:01:40]} 9. O-O {[%emt 0:04:31]} cxd4 {[%emt 0:08:19]} 10. cxd4 {[%emt 0:06:29]} f5 {[%emt 0:13:05]} 11. Nf4 Nf8 {[%emt 0:00:24]} 12. a3 {[%emt 0:10:17]} Bd7 {[%emt 0:06:39]} 13. Bc2 {[%emt 0:01:00]} Ng6 {[%emt 0:01:01]} 14. Nh5 {[%emt 0:07:55]} O-O {[%emt 0:11:36]} 15. g3 {[%emt 0:00:18]} Nh8 {[%emt 0:03:04]} 16. h4 {[%emt 0:02:19]} g6 {[%emt 0:00:55]} 17. Nf4 {[%emt 0:08:17]} Nf7 {[%emt 0:03:25]} 18. Rb1 {[%emt 0:01:00]} Kg7 {[%emt 0:00:26]} 19. b4 {[%emt 0:02:55]} Rac8 {[%emt 0:09:05]} 20. Re1 {[%emt 0:01:54]} Nh6 {[%emt 0:04:06]} 21. Ng5 {[%emt 0:09:43]} Bxg5 {[%emt 0:03:19]} 22. hxg5 {[%emt 0:00:08]} Ng4 {[%emt 0:02:11]} 23. Bb2 {[%emt 0:04:31]} h6 {[%emt 0:00:37]} 24. gxh6+ {[%emt 0:03:28]} Nxh6 {[%emt 0:00:09]} 25. Kg2 {[%emt 0:04:51]} Rh8 {[%emt 0:02:45]} 26. f3 {[%emt 0:01:25]} Rh7 {[%emt 0:01:04]} 27. Qd2 {[%emt 0:04:11]} Rch8 {[%emt 0:00:23]} 28. Rh1 {[%emt 0:01:44]} Qd8 {[%emt 0:01:55]} 29. Rh3 {[%emt 0:02:10]} Nf7 {[%emt 0:01:48]} 30. Rbh1 {[%emt 0:00:24]} Rxh3 {[%emt 0:01:40]} 31. Rxh3 {[%emt 0:00:14]} Rxh3 {[%emt 0:01:33]} 32. Nxh3 {[%emt 0:00:08]} b6 {[%emt 0:00:23]} 33. Bd3 {[%emt 0:04:37]} Qh8 {[%emt 0:07:05]} 34. Be2 {[%emt 0:02:42]} Qh6 {[%emt 0:01:49]} 35. Qc3 {[%emt 0:02:41]} g5 {[%emt 0:04:15]} 36. Bc1 {[%emt 0:02:00]} Qh5 {[%emt 0:02:00]} 37. b5 {[%emt 0:01:26]} Na5 {[%emt 0:03:12]} 38. Qc7 {[%emt 0:00:29]} Nb3 {[%emt 0:00:26]} 39. Be3 {[%emt 0:03:12]} f4 {[%emt 0:02:58]} 40. gxf4 {[%emt 0:06:41]} gxf4 {[%emt 0:00:08]} 41. Nxf4 {[%emt 0:33:12]} Qg5+ {[%emt 0:33:42]} 42. Kf1 {[%emt 0:00:24]} Qd8 {[%emt 0:00:00]} 43. Qc2 {[%emt 0:00:00]} Na5 {[%emt 0:00:00]} 44. Qg6+ {[%emt 0:00:00]} Kf8 {[%emt 0:00:00]} 45. Bd2 1-0

[Event "FIDE WSTC Open 50 2025"]
[Site "Prague"]
[Date "2025.02.17"]
[Round "1.5"]
[White "Conquest, Stuart C"]
[Black "Horak, Jiri"]
[Result "1-0"]
[Annotator "ChessBase"]
[ECO "D35"]
[WhiteElo "2513"]
[BlackElo "2092"]
[PlyCount "81"]
[EventDate "2025.02.17"]
[EventType "team-tourn"]
[EventCountry "CZE"]
[SourceTitle "playchess.com"]
[Source "ChessBase"]
[SourceQuality "1"]
[TimeControl "40/5400+30:1800+30"]

1. c4 {[%emt 0:00:03]} e6 {[%emt 0:00:04]} 2. Nc3 {[%emt 0:01:34]} d5 {[%emt 0:00:09]} 3. d4 {[%emt 0:00:19]} Nf6 {[%emt 0:03:20]} 4. Nf3 {[%emt 0:00:48]} Nbd7 {[%emt 0:00:44]} 5. cxd5 {[%emt 0:01:55]} exd5 {[%emt 0:00:06]} 6. Bf4 {[%emt 0:02:47]} c6 {[%emt 0:00:39]} 7. Qc2 {[%emt 0:03:03]} Be7 {[%emt 0:02:20]} 8. h3 {[%emt 0:02:16]} Qa5 {[%emt 0:02:36]} 9. e3 {[%emt 0:02:33]} Ne4 {[%emt 0:00:55]} 10. Bd3 {[%emt 0:01:48]} Ndf6 {[%emt 0:01:44]} 11. O-O {[%emt 0:03:57]} Nxc3 {[%emt 0:01:41]} 12. bxc3 {[%emt 0:00:17]} O-O {[%emt 0:02:04]} 13. Rab1 {[%emt 0:08:17]} a6 {[%emt 0:01:11]} 14. Ne5 {[%emt 0:08:11]} Ra7 {[%emt 0:08:14]} 15. c4 {[%emt 0:12:32]} dxc4 {[%emt 0:14:47]} 16. Nxc4 {[%emt 0:04:51]} Qd8 {[%emt 0:06:34]} 17. e4 {[%emt 0:14:46]} Be6 {[%emt 0:07:49]} 18. Rfd1 {[%emt 0:01:55]} Bxc4 {[%emt 0:09:12]} 19. Qxc4 {[%emt 0:01:56]} Qd7 {[%emt 0:03:36]} 20. Qc2 {[%emt 0:05:18]} g6 {[%emt 0:03:19]} 21. Qb2 {[%emt 0:08:42]} b5 {[%emt 0:02:42]} 22. Rbc1 {[%emt 0:00:13]} Rd8 {[%emt 0:02:20]} 23. Bc2 {[%emt 0:05:06]} Raa8 {[%emt 0:04:51]} 24. Bb1 {[%emt 0:01:30]} Rac8 {[%emt 0:02:31]} 25. Rd2 {[%emt 0:02:00]} Ne8 {[%emt 0:04:47]} 26. Rcd1 {[%emt 0:01:39]} Nc7 {[%emt 0:06:44]} 27. Be3 {[%emt 0:00:22]} Bf6 {[%emt 0:02:14]} 28. Qa3 {[%emt 0:00:44]} Ne6 {[%emt 0:01:56]} 29. d5 {[%emt 0:02:21]} cxd5 {[%emt 0:01:14]} 30. exd5 {[%emt 0:00:11]} Nc7 {[%emt 0:03:17]} 31. Be4 {[%emt 0:01:24]} Be5 {[%emt 0:01:03]} 32. d6 {[%emt 0:01:01]} Ne8 {[%emt 0:00:22]} 33. Bb6 {[%emt 0:00:28]} Bxd6 {[%emt 0:00:38]} 34. Qxa6 {[%emt 0:01:34]} Qe6 {[%emt 0:00:29]} 35. Bd5 {[%emt 0:00:54]} Qe5 {[%emt 0:00:44]} 36. g3 {[%emt 0:00:34]} Nc7 {[%emt 0:00:43]} 37. Qb7 {[%emt 0:00:37]} Rb8 {[%emt 0:00:50]} 38. Qc6 {[%emt 0:00:05]} Qe8 {[%emt 0:00:21]} 39. Bxf7+ {[%emt 0:00:51]} Kxf7 {[%emt 0:00:26]} 40. Qf3+ {[%emt 0:00:08]} Ke7 {[%emt 0:00:23]} 41. Bxc7 {[%emt 0:30:29]} 1-0

[Event "FIDE WSTC Open 50 2025"]
[Site "Prague"]
[Date "2025.02.17"]
[Round "1.6"]
[White "Mazanek, Kamil"]
[Black "Wells, Peter K"]
[Result "0-1"]
[Annotator "ChessBase"]
[ECO "B22"]
[WhiteElo "2099"]
[BlackElo "2358"]
[PlyCount "88"]
[EventDate "2025.02.17"]
[EventType "team-tourn"]
[EventCountry "CZE"]
[SourceTitle "playchess.com"]
[Source "ChessBase"]
[SourceQuality "1"]
[TimeControl "40/5400+30:1800+30"]

1. e4 {[%emt 0:00:07]} c5 {[%emt 0:00:14]} 2. c3 {[%emt 0:00:04]} Nf6 {[%emt 0:00:16]} 3. e5 {[%emt 0:00:01]} Nd5 {[%emt 0:00:09]} 4. d4 {[%emt 0:00:01]} cxd4 {[%emt 0:00:31]} 5. Nf3 {[%emt 0:00:01]} d6 {[%emt 0:04:02]} 6. cxd4 {[%emt 0:00:33]} dxe5 {[%emt 0:06:11]} 7. dxe5 {[%emt 0:01:37]} Nc6 {[%emt 0:12:17]} 8. Bc4 {[%emt 0:05:29]} Ndb4 {[%emt 0:00:35]} 9. Qxd8+ {[%emt 0:18:02]} Nxd8 {[%emt 0:00:07]} 10. Na3 {[%emt 0:03:20]} a6 {[%emt 0:06:22]} 11. Bd2 {[%emt 0:03:50]} e6 {[%emt 0:02:57]} 12. O-O {[%emt 0:10:42]} Ndc6 {[%emt 0:06:02]} 13. Rfd1 {[%emt 0:08:22]} Bd7 {[%emt 0:03:43]} 14. Be3 {[%emt 0:06:27]} b5 {[%emt 0:07:46]} 15. Bb3 {[%emt 0:01:25]} Na5 {[%emt 0:08:04]} 16. Rac1 {[%emt 0:05:32]} Nxb3 {[%emt 0:03:43]} 17. axb3 {[%emt 0:01:52]} Nd5 {[%emt 0:07:45]} 18. Bc5 {[%emt 0:01:11]} Bxc5 {[%emt 0:01:24]} 19. Rxc5 {[%emt 0:00:01]} Ke7 {[%emt 0:00:09]} 20. Nd4 {[%emt 0:05:27]} Rhc8 {[%emt 0:04:29]} 21. Rdc1 {[%emt 0:00:45]} Rxc5 {[%emt 0:03:18]} 22. Rxc5 {[%emt 0:00:00]} Nf4 {[%emt 0:00:19]} 23. Nac2 {[%emt 0:06:42]} Nd3 {[%emt 0:01:33]} 24. Rc7 {[%emt 0:04:50]} Kd8 {[%emt 0:00:58]} 25. Rc3 {[%emt 0:00:39]} Nxe5 {[%emt 0:00:44]} 26. f4 {[%emt 0:00:28]} Ng6 {[%emt 0:00:56]} 27. g3 {[%emt 0:00:15]} Ne7 {[%emt 0:04:26]} 28. Nb4 {[%emt 0:01:44]} a5 {[%emt 0:03:04]} 29. Nd3 {[%emt 0:01:00]} Nd5 {[%emt 0:04:25]} 30. Rc5 {[%emt 0:00:49]} Rc8 {[%emt 0:01:43]} 31. Rxc8+ {[%emt 0:04:14]} Kxc8 {[%emt 0:00:05]} 32. Ne5 {[%emt 0:00:06]} Be8 {[%emt 0:00:38]} 33. Kf2 {[%emt 0:03:57]} Kc7 {[%emt 0:00:47]} 34. Ke2 {[%emt 0:00:30]} Kd6 {[%emt 0:01:02]} 35. Kd3 {[%emt 0:02:34]} f6 {[%emt 0:04:45]} 36. Nef3 {[%emt 0:00:50]} Nb4+ {[%emt 0:01:59]} 37. Kc3 {[%emt 0:01:14]} Kd5 {[%emt 0:00:33]} 38. Nd2 {[%emt 0:00:26]} e5 {[%emt 0:00:32]} 39. Nf5 {[%emt 0:01:01]} Na2+ {[%emt 0:00:08]} 40. Kd3 {[%emt 0:00:37]} Bg6 {[%emt 0:00:14]} 41. g4 {[%emt 0:30:44]} exf4 {[%emt 0:30:28]} 42. Ke2 {[%emt 0:02:32]} Bxf5 {[%emt 0:01:26]} 43. gxf5 {[%emt 0:00:07]} Ke5 {[%emt 0:00:35]} 44. Nf3+ {[%emt 0:00:44]} Ke4 {[%emt 0:00:29]} 0-1

[Event "FIDE WSTC Open 50 2025"]
[Site "Prague"]
[Date "2025.02.17"]
[Round "1.7"]
[White "Hebden, Mark L"]
[Black "Nudcenko, Karel"]
[Result "1-0"]
[Annotator "ChessBase"]
[ECO "A45"]
[WhiteElo "2363"]
[BlackElo "1990"]
[PlyCount "79"]
[EventDate "2025.02.17"]
[EventType "team-tourn"]
[EventCountry "CZE"]
[SourceTitle "playchess.com"]
[Source "ChessBase"]
[SourceQuality "1"]
[TimeControl "40/5400+30:1800+30"]

1. d4 {[%emt 0:00:15]} Nf6 {[%emt 0:00:28]} 2. Bg5 {[%emt 0:00:14]} d5 {[%emt 0:01:25]} 3. e3 {[%emt 0:02:08]} Nbd7 {[%emt 0:03:00]} 4. Nf3 {[%emt 0:03:02]} e6 {[%emt 0:14:44]} 5. Nbd2 {[%emt 0:01:37]} Be7 {[%emt 0:00:12]} 6. Bd3 {[%emt 0:00:46]} c5 {[%emt 0:01:40]} 7. c3 {[%emt 0:00:16]} b6 {[%emt 0:02:45]} 8. Ne5 {[%emt 0:05:10]} Nxe5 {[%emt 0:01:20]} 9. dxe5 {[%emt 0:00:10]} Nd7 {[%emt 0:01:28]} 10. Bxe7 {[%emt 0:02:04]} Qxe7 {[%emt 0:00:13]} 11. f4 {[%emt 0:00:13]} Bb7 {[%emt 0:04:21]} 12. Qe2 {[%emt 0:01:43]} f6 {[%emt 0:01:56]} 13. exf6 {[%emt 0:00:16]} gxf6 {[%emt 0:02:54]} 14. e4 {[%emt 0:00:29]} O-O-O {[%emt 0:02:19]} 15. exd5 {[%emt 0:02:27]} Bxd5 {[%emt 0:02:01]} 16. O-O-O {[%emt 0:01:17]} Rhg8 {[%emt 0:08:08]} 17. Be4 {[%emt 0:00:40]} Nf8 {[%emt 0:03:13]} 18. Bxd5 {[%emt 0:00:57]} Rxd5 {[%emt 0:00:50]} 19. Nc4 {[%emt 0:00:45]} Rg7 {[%emt 0:06:43]} 20. g3 {[%emt 0:03:36]} Qd8 {[%emt 0:01:19]} 21. Ne3 {[%emt 0:10:48]} Rxd1+ {[%emt 0:01:07]} 22. Rxd1 {[%emt 0:00:13]} Rd7 {[%emt 0:00:37]} 23. Re1 {[%emt 0:03:58]} Rd6 {[%emt 0:05:09]} 24. Qh5 {[%emt 0:02:54]} Qd7 {[%emt 0:08:02]} 25. Qh4 {[%emt 0:05:54]} Qd8 {[%emt 0:01:09]} 26. f5 {[%emt 0:01:14]} exf5 {[%emt 0:05:13]} 27. Nxf5 {[%emt 0:01:21]} Rd7 {[%emt 0:00:21]} 28. Qe4 {[%emt 0:03:54]} Kb8 {[%emt 0:00:56]} 29. Ne7 {[%emt 0:00:45]} Kc7 {[%emt 0:05:50]} 30. Qc6+ {[%emt 0:03:41]} Kb8 {[%emt 0:00:28]} 31. Qxf6 {[%emt 0:00:19]} Kb7 {[%emt 0:02:58]} 32. Qc6+ {[%emt 0:01:47]} Ka6 {[%emt 0:02:42]} 33. Qe4 {[%emt 0:00:25]} Rd6 {[%emt 0:04:11]} 34. a4 {[%emt 0:00:52]} Ng6 {[%emt 0:01:25]} 35. Nxg6 {[%emt 0:03:52]} hxg6 {[%emt 0:00:21]} 36. h4 {[%emt 0:01:05]} Qf6 {[%emt 0:02:11]} 37. Qe2+ {[%emt 0:03:28]} Kb7 {[%emt 0:00:43]} 38. Rf1 {[%emt 0:00:34]} Qg7 {[%emt 0:01:28]} 39. Qe4+ {[%emt 0:00:15]} Kc7 {[%emt 0:02:15]} 40. Qa8 {[%emt 0:01:14]} 1-0

[Event "FIDE WSTC Open 50 2025"]
[Site "Prague"]
[Date "2025.02.17"]
[Round "1.8"]
[White "Koblasa, Josef"]
[Black "Emms, John M"]
[Result "0-1"]
[Annotator "ChessBase"]
[ECO "A13"]
[WhiteElo "1906"]
[BlackElo "2409"]
[PlyCount "74"]
[EventDate "2025.02.17"]
[EventType "team-tourn"]
[EventCountry "CZE"]
[SourceTitle "playchess.com"]
[Source "ChessBase"]
[SourceQuality "1"]
[TimeControl "40/5400+30:1800+30"]

1. c4 {[%emt 0:00:04]} e6 {[%emt 0:00:27]} 2. Nc3 {[%emt 0:00:06]} d5 {[%emt 0:00:17]} 3. e3 {[%emt 0:00:40]} Nf6 {[%emt 0:00:31]} 4. d4 {[%emt 0:00:33]} a6 {[%emt 0:00:57]} 5. a3 {[%emt 0:01:58]} dxc4 {[%emt 0:00:53]} 6. Bxc4 {[%emt 0:00:41]} c5 {[%emt 0:00:37]} 7. dxc5 {[%emt 0:03:25]} Qxd1+ {[%emt 0:00:36]} 8. Nxd1 {[%emt 0:04:25]} Bxc5 {[%emt 0:00:10]} 9. b4 {[%emt 0:00:12]} Bd6 {[%emt 0:01:43]} 10. Nf3 {[%emt 0:02:36]} b5 {[%emt 0:06:12]} 11. Bb3 {[%emt 0:03:04]} Bb7 {[%emt 0:03:15]} 12. Bb2 {[%emt 0:04:04]} Nbd7 {[%emt 0:00:48]} 13. O-O {[%emt 0:05:22]} Ke7 {[%emt 0:05:17]} 14. Re1 {[%emt 0:10:45]} Rac8 {[%emt 0:05:33]} 15. Rc1 {[%emt 0:04:56]} Rxc1 {[%emt 0:11:28]} 16. Bxc1 {[%emt 0:00:06]} Bxf3 {[%emt 0:04:03]} 17. gxf3 {[%emt 0:00:24]} Ne5 {[%emt 0:00:18]} 18. Kg2 {[%emt 0:10:12]} Nd3 {[%emt 0:01:05]} 19. Bd2 {[%emt 0:00:34]} Nxe1+ {[%emt 0:00:33]} 20. Bxe1 {[%emt 0:00:09]} Rc8 {[%emt 0:04:19]} 21. Bc3 {[%emt 0:04:33]} Nd5 {[%emt 0:06:07]} 22. Bb2 {[%emt 0:01:18]} g5 {[%emt 0:03:40]} 23. h3 {[%emt 0:03:51]} f6 {[%emt 0:04:48]} 24. Kf1 {[%emt 0:01:18]} Be5 {[%emt 0:02:37]} 25. Bxe5 {[%emt 0:15:58]} fxe5 {[%emt 0:00:07]} 26. Ke1 {[%emt 0:01:46]} Nc3 {[%emt 0:05:28]} 27. Nb2 {[%emt 0:05:05]} e4 {[%emt 0:05:02]} 28. fxe4 {[%emt 0:08:24]} Nxe4 {[%emt 0:00:20]} 29. a4 {[%emt 0:05:07]} Rc1+ {[%emt 0:06:45]} 30. Nd1 {[%emt 0:00:30]} bxa4 {[%emt 0:02:29]} 31. Bxa4 {[%emt 0:00:31]} Rc4 {[%emt 0:00:44]} 32. f3 {[%emt 0:00:37]} Rxb4 {[%emt 0:01:11]} 33. Bc2 {[%emt 0:00:28]} Nf6 {[%emt 0:00:49]} 34. Bd3 {[%emt 0:00:19]} a5 {[%emt 0:00:13]} 35. Nc3 {[%emt 0:00:48]} Nd5 {[%emt 0:05:01]} 36. Nd1 {[%emt 0:01:19]} a4 {[%emt 0:01:25]} 37. e4 {[%emt 0:00:56]} a3 {[%emt 0:01:22]} 0-1